Cogmind - Beta 10.2 @@@ ROGUE MODE // 2022.02.06 @ 01:43:22 Player: Conner Result: Destroyed by G-47 Trooper with Particle Gun Performance ------------- Evolutions (0) 0 Regions Visited (2) 400 Robots Destroyed (33) 165 Value Destroyed (434) 434 Prototype IDs (0) 0 Alien Tech Used (0) 0 Bonus (0) 0 TOTAL SCORE: 999 Bonus ------- None Cogmind --------- Core Integrity 0/250 Matter 85/300 Energy 125/125 System Corruption 7% Temperature Cool (9) Movement Rolling (110) Ox3 Location -10/Mines Parts ------- > --- POWER (1) -------- Light Ion Engine > --- PROPULSION (2) --- Wheel > --- UTILITY (2) ------ High-capacity Storage Unit Terrain Scan Processor > --- WEAPON (2) ------- (None) > --- INVENTORY (12) --- Ion Engine Ion Engine Ion Engine Ion Engine Ion Engine Light Ion Engine Large Storage Unit Experimental Sensor Array Improved Terrain Scanner Light Armor Plating Peak State ------------ > --- POWER ------------ Ion Engine > --- PROPULSION ------- Wheel Wheel > --- UTILITY ---------- High-capacity Storage Unit Terrain Scan Processor > --- WEAPON ----------- Particle Gun Light Assault Rifle > --- INVENTORY -------- Ion Engine Ion Engine Ion Engine Ion Engine Light Ion Engine Wheel Wheel Large Storage Unit Improved Terrain Scanner Light Armor Plating Rocket Launcher [Rating: 10] Favorites ----------- Power Ion Engine Engine Ion Engine Propulsion Wheel Wheel Wheel Utility High-capacity Storage Unit Storage High-capacity Storage Unit Processor Terrain Scan Processor Weapon Light Assault Rifle Energy Gun EM Pulse Gun Ballistic Gun Light Assault Rifle Launcher Rocket Launcher Special Weapon Mining Laser Build | -11 -10 -10 ------- Run | Scr Mat Min Slots Evolved . | . . . Power . | . . . Propulsion . | . . . Utility . | . . . Weapon . | . . . Parts Attached 43 | 12 22 9 Power 8 | 2 5 1 Engine 8 | 2 5 1 Core . | . . . Reactor . | . . . Propulsion 14 | 5 6 3 Treads . | . . . Leg . | . . . Wheel 14 | 5 6 3 Hover . | . . . Flight . | . . . Utility 5 | 2 3 . Device . | . . . Storage 3 | 1 2 . Processor 2 | 1 1 . Hackware . | . . . Protection . | . . . Artifact . | . . . Weapon 16 | 3 8 5 Energy Gun 3 | 1 2 . Energy Cannon . | . . . Ballistic Gun 8 | 1 4 3 Ballistic Cannon . | . . . Launcher 1 | . . 1 Special Weapon 4 | 1 2 1 Impact Weapon . | . . . Slashing Weapon . | . . . Piercing Weapon . | . . . Special Melee Weapon . | . . . Unidentified Prototypes . | . . . Parts Lost 13 | . 4 9 Power . | . . . Propulsion 3 | . . 3 Utility . | . . . Weapon 10 | . 4 6 Highest Loss Streak 6 | . 2 6 Average Slot Usage (%) 98 | . 100 92 Engine 14 | . 14 14 Wheel 26 | . 28 22 Storage 14 | . 14 14 Processor 14 | . 14 14 Ballistic Gun 18 | . 22 7 Special Weapon 8 | . 4 18 Naked Turns . | . . . Heaviest Build 42 | 12 41 42 Greatest Support 32 | 32 26 20 Greatest Overweight (x) 4 | . 2 4 Average Overweight (x) 1 | . . 1 Largest Inventory Capacity 12 | 6 12 12 Average Capacity 11 | 5 11 12 Most Carried 12 | 6 12 12 Average Carried 10 | 4 11 10 Final Capacity 12 | 6 12 12 Final Carried 12 | 6 12 10 Class Distribution -------------------- 100% | Mutant Dominant Class ---------------- Mutant | -10/Materials Mutant | -10/Mines Resources | -11 -10 -10 ----------- Run | Scr Mat Min Matter Collected 868 | 263 582 23 Remotely . | . . . Salvage Created 849 | 129 697 23 Parts 63 | 10 47 6 Haulers Intercepted 2 | . 2 . Recyclers Shooed 4 | . 3 1 Parts Field Recycled . | . . . Retrieved Matter . | . . . Parts Self-Destructed . | . . . Prevented . | . . . Kills | -11 -10 -10 ------- Run | Scr Mat Min Combat Hostiles Destroyed 14 | . 11 3 Guns 11 | . 11 . AOE 3 | . . 3 Classes Destroyed 8 | 3 5 . Worker 8 | 2 6 . Builder 3 | . 2 1 Tunneler 3 | 2 1 . Hauler 2 | . 2 . Recycler 2 | 1 1 . Watcher 1 | . 1 . Swarmer 6 | . 3 3 Grunt 8 | . 8 . Best Kill Streak 4 | 2 3 4 Combat Bots Only 3 | . 2 3 Max Kills in Single Turn 4 | 1 1 4 Gunslinging . | . . . Exploded 3 | . . 3 Melee . | . . . Uniques/NPCs Destroyed . | . . . Combat | -11 -10 -10 -------- Run | Scr Mat Min Damage Taken 1436 | . 847 589 Core 253 | . 187 66 Absorbed by Shields . | . . . Core Remaining (%) 100 | 100 . . Volleys Fired 155 | 12 139 4 Largest 2 | 2 2 2 Hottest 200 | 120 120 200 Shots Fired 268 | 21 239 8 Gun 251 | 18 230 3 Cannon . | . . . Launcher 1 | . . 1 Special 16 | 3 9 4 Kinetic 239 | 12 224 3 Thermal 22 | 3 15 4 Explosive 1 | . . 1 Electromagnetic 6 | 6 . . Robot Hit Streak 6 | 5 6 2 Robot Miss Streak 5 | 1 5 3 Penetration Max . | . . . Secondary Targets 2 | . 2 . Max Gunslinging Chain 1 | . 1 . Shots Hit Robots 155 | 15 138 2 Core Hits 52 | 7 40 5 Critical Hits 1 | . 1 . Critical Kills . | . . . Critical Parts Destroyed 1 | . 1 . Melee Attacks . | . . . Impact . | . . . Slashing . | . . . Piercing . | . . . Sneak Attacks . | . . . Combat Hostiles . | . . . Follow-up Attacks . | . . . Damage Inflicted 1946 | 184 1502 260 Guns 1542 | 136 1406 . Cannons . | . . . Explosions 236 | . . 236 Melee . | . . . Ramming . | . . . Kinetic 1427 | 60 1367 . Thermal 207 | 48 135 24 Explosive 236 | . . 236 Electromagnetic 76 | 76 . . Impact . | . . . Slashing . | . . . Piercing . | . . . Highest Corruption 7 | . 1 7 Average Corruption 3 | . 1 4 Corruption Purged . | . . . Effects 8 | . 2 6 Message Errors 3 | . . 3 Data Loss (minor) 2 | . . 2 Misfires 1 | . . 1 Targeting Errors 2 | . 2 . Overload Shots . | . . . Overflow Damage 8 | . . 8 Projectiles . | . . . Explosions 8 | . . 8 Melee . | . . . Knockbacks . | . . . Impact . | . . . Kinetic . | . . . Secondary . | . . . Self-Inflicted Damage 48 | . . 48 Shots 1 | . . 1 Rammed . | . . . Targets Rammed . | . . . Kicked . | . . . Crushed . | . . . Highest Temperature 112 | 80 92 112 Average Temperature 23 | 29 15 52 Received Heat Transfer 372 | . 336 36 Siege Activations . | . . . Robots Corrupted . | . . . Combat Hostiles . | . . . Parts Fried . | . . . Impact Corruptions . | . . . Robots Melted . | . . . Combat Hostiles . | . . . Parts Melted . | . . . Heat Transferred 437 | 100 287 50 Parts Sabotaged . | . . . Parts Stolen . | . . . Parts Stripped . | . . . Power Chain Reactions . | . . . Missiles Intercepted . | . . . Alert | -11 -10 -10 ------- Run | Scr Mat Min Peak Influence 182 | 25 182 105 Initial 70 | . 16 70 Average 70 | 10 73 80 Maximum Alert Level . | . . . Low Security (%) 100 | 100 100 100 Level 1 . | . . . Level 2 . | . . . Level 3 . | . . . Level 4 . | . . . Level 5 . | . . . High Security . | . . . Max Security . | . . . Squads Dispatched 3 | . 3 . Investigation 2 | . 2 . Extermination . | . . . Reinforcement 1 | . 1 . Assault . | . . . Garrison . | . . . Intercept . | . . . Construction Impeded . | . . . Haulers Reinforced . | . . . Stealth | -11 -10 -10 --------- Run | Scr Mat Min Distress Signals . | . . . Communications Jammed . | . . . Distress Signals . | . . . Times Spotted 35 | . 25 10 Peak Tracking Total 5 | . 3 5 Tactical Retreats 2 | . 1 1 Traps | -11 -10 -10 ------- Run | Scr Mat Min Traps Triggered 2 | . 2 . Indirectly . | . . . Trap Hack Attempts . | . . . Triggered . | . . . Disarmed . | . . . Reprogrammed . | . . . Reused . | . . . Traps Extracted . | . . . Installed . | . . . Triggered . | . . . Machines | -11 -10 -10 ---------- Run | Scr Mat Min Machines Disabled . | . . . Max in Single Turn . | . . . Machines Sabotaged . | . . . Garrisons Compromised . | . . . Overloaded Fab Kills . | . . . Fab Network Shutdowns . | . . . Hacking | -11 -10 -10 --------- Run | Scr Mat Min Machines Accessed 7 | . 7 . Terminals 6 | . 6 . Fabricators . | . . . Repair Stations . | . . . Recycling Units 1 | . 1 . Scanalyzers . | . . . Garrison Access . | . . . Total Hacks 19 | . 19 . Successful 9 | . 9 . Failed 10 | . 10 . Catastrophic . | . . . Database Lockouts . | . . . Manual 19 | . 19 . Terminals 16 | . 16 . Fabricators . | . . . Repair Stations . | . . . Recycling Units 3 | . 3 . Scanalyzers . | . . . Garrison Access . | . . . Terminal Hacks 1 | . 1 . Alert Level 1 | . 1 . Fabricator Hacks . | . . . Repair Station Hacks . | . . . Recycling Unit Hacks . | . . . Scanalyzer . | . . . Garrison Access Hacks . | . . . Unauthorized Hacks 8 | . 8 . Terminals 7 | . 7 . Track 2 | . 2 . Botnet 5 | . 5 . Fabricators . | . . . Repair Stations . | . . . Recycling Units 1 | . 1 . Mask 1 | . 1 . Scanalyzers . | . . . Garrison Access . | . . . Data Cores Recovered . | . . . Used . | . . . Hacking Detections 7 | . 7 . Full Trace Events 1 | . 1 . Feedback Events . | . . . Feedback Blocked . | . . . Robot Schematics Acquired . | . . . Robots Built . | . . . Matter . | . . . Time . | . . . Total Robot Build Rating . | . . . Part Schematics Acquired . | . . . Parts Built . | . . . Matter . | . . . Time . | . . . Total Part Build Rating . | . . . Parts Repaired . | . . . Time . | . . . Parts Recycled . | . . . Recycled Matter . | . . . Retrieved Matter . | . . . Retrieved Components . | . . . Parts Scanalyzed . | . . . Part Schematics Acquired . | . . . Parts Damaged . | . . . Bothacking | -11 -10 -10 ------------ Run | Scr Mat Min Used RIF Installer . | . . . Robots Hacked . | . . . Non-combat . | . . . Combat . | . . . Robot Hacks Applied . | . . . Relay Couplers Released . | . . . Robots Rewired . | . . . Allies Hacked . | . . . Hacks Repelled . | . . . Allies | -11 -10 -10 -------- Run | Scr Mat Min Total Allies . | . . . Largest Group . | . . . Highest-Rated Group . | . . . Highest-Rated Ally . | . . . Total Orders . | . . . Ally Attacks . | . . . Total Damage . | . . . Kills . | . . . Allies Corrupted . | . . . Allies Melted . | . . . Intel | -11 -10 -10 ------- Run | Scr Mat Min Robot Analysis Total . | . . . Derelict Logs Recovered 2 | . . 2 Drone Launches . | . . . Drone Recoveries . | . . . Exploration | -11 -10 -10 ------------- Run | Scr Mat Min Turns Passed 1678 | 135 1130 413 Spaces Moved 1239 | 85 764 390 Core 4 | 4 . . Treads . | . . . Legs . | . . . Wheels 1235 | 81 764 390 Hover . | . . . Flight . | . . . Fastest Speed 50 | 50 90 90 Average Speed 93 | 91 92 97 Slowest Speed 120 | 100 100 120 Overloaded Moves . | . . . Propulsion Burnouts . | . . . Robots Hopped . | . . . Cave-ins Triggered 1 | . . 1 Exploration Rate (%) 57 | 5 86 80 Regions Visited 2 Branch Regions 1 Pre-discovered Areas 1 | . . 1 Known Exits Taken . | . . . Unknown Exits Taken 2 | 1 1 . Scrap Searched . | . . . Spaces Dug 2 | . 2 . Terrain Destroyed 17 | 1 3 13 Melee . | . . . Projectile 7 | 1 3 3 AOE 10 | . . 10 Terrain Rammed . | . . . Walls Destroyed . | . . . Machines Disabled . | . . . Actions | -11 -10 -10 --------- Run | Scr Mat Min Total 1485 | 117 961 407 Wait 4 | . 2 2 Move 1237 | 84 763 390 Hop . | . . . Pick Up 21 | 5 14 2 Fast Attach 10 | 8 2 . Attach 10 | . 4 6 Detach . | . . . Swap 23 | 4 16 3 Drop 25 | 4 21 . Fire 155 | 12 139 4 Melee . | . . . Ram . | . . . Kick . | . . . Crush . | . . . Escape Stasis . | . . . Rewire . | . . . Trap . | . . . Miscellaneous . | . . . Route ------- -11/Scrapyard -10/Materials (discovered 4 exits: [*Mat x3] / [*Min]) -10/Mines History --------- Turn | Location | Event 6 | -11/Scrapyard | Discovered new exit (range 16) 136 | -11/Scrapyard | Entered Materials 212 | -10/Materials | Discovered new exit (range 15) 324 | -10/Materials | Build established: Mutant 572 | -10/Materials | Discovered new exit (range 10) 1048 | -10/Materials | Core integrity fell below 50% 1124 | -10/Materials | Discovered new exit (range 7) 1226 | -10/Materials | Discovered new exit (range 15) 1266 | -10/Materials | Entered Mines 1317 | -10/Mines | Learned Materials garrison access intel 1422 | -10/Mines | Core integrity fell below 20% 1457 | -10/Mines | Crushed by falling debris 1488 | -10/Mines | Lost 6 parts (2n4w) 1509 | -10/Mines | Found a damaged Exp. Sensor Array with a note attached 1511 | -10/Mines | Found Prototype Device 1584 | -10/Mines | Learned location of Storage (-9) 1679 | -10/Mines | Destroyed by G-47 Trooper with Particle Gun Last Messages --------------- 01497_ System corrupted: Component data lost. 01509_ A damaged part is partially visible under some rubble. There's a note attached: "Everyone keeps telling us we should avoid high-traffic areas because that's where patrols are more likely to show up, but that doesn't do us much good if we can't spot those areas until they're on top of us... With this we can! Deliver it to Megawrench for repairs then we'll never be afraid of an ambush while sneaking around Materials again, ha." 01511_ Acquired Prototype Device. 01529_ Wheel destroyed. 01584_ Acquired derelict log, extracted data. World map updated: -9/Storage. 01590_ FQE8YPRY363OV6#UBWH 01616_ System corrupted: Component data lost. 01636_ System corrupted: FCS attempts to trigger Lgt. Assault Rifle. 01636_ System corrupted: Lgt. Assault Rifle misfires. 01653_ 2S%KGTV5|4CO959Y 01670_ Welding Torch destroyed. 01674_ Lgt. Assault Rifle destroyed. Map ----- +----------------------------------------------------+ | | | | | | | | | | | | | | | | | | | | | | | | | | | | | | | | | | | | | | | ??????????????????????????????????????? | | ??????????????????????????????????????? | | ????????????####???####???????????????? | | ???????????## ##### ################# | | ???????????# ## | | ???????????# g ########### #### | | ???# ??????## @ g ##?????????# #??? | | ???# ?????# # k##????####### #??? | | ???? ???#s## ####### #??? | | ???# """ ## ## #### ##??? | | ???# """ ### ####### #### ##??? | | ???# """ ####?## ##?????# ## ##?? | | ???? ???????####?????## ##? | | ???######?????????????????# ## | | ??????????????????????????# # | | ??????????????????????????## | | ???????????????????????????# #### | | ??????????????????????????# ##??## | | ???????????????????????? ?????## | | ?????????????????????? ??????# | | ?????????????????????? ??????# | | ????????????????????? ?????# | | ?????????????????????? ?????# | | ?????????????????????? ?????# | | ??????????????????????? ????????# | | ?????????????????????????? ?????????## | | ?????????????????????????????????????## | | ??????????????????????????????????????? | | ??????????????????????????????????????? | | ??????????????????????????????????????? | | ??????????????????????????????????????? | +----------------------------------------------------+ Best States ------------- Heat Dissipation 25 Energy Generation 10 Energy Capacity 250 Matter Stores 241 Matter Capacity 300 Sight Range 16 Terrain Scan Density 85 Evasion (%) 42 Item Schematics ----------------- None Robot Schematics ------------------ None Fabricated ------------ Nothing Alien Tech Used ----------------- None Achievements -------------- None Challenges ------------ None Game ------ Seed NeutrinoAssembledModule Manual? 0 Play Time 00:11:27 Cumulative 32.9 hours Start 2022.02.06 @ 01:33:46 End 2022.02.06 @ 01:43:22 Sessions 1 Manual Loads 0 Difficulty Rogue Special Mode None Game No. 56 Rogue 56 Adventurer 0 Explorer 0 Win Type - Total 0 Types 0/0/0/0/0/0/0/0/0 Lore% 46 Gallery% 43 Achievement% 36 Wizard Run 0 Options --------- ASCII 0 Keyboard 0 Movement Numpad Keybinds 0 Fullscreen 1 Font 24/Smallcaps Map View 76x50 Tactical HUD 1 Map Filters NONE Filters NONE Steam 1 RUN: d0760606-3d22-4086-9c36-2bdc16552d5d